[Event "Open Mancomunitat de la Ribera Alta (Sumacàrcer)"]
[Site "Sumacàrcer, Spain"]
[Date "2018.11.18"]
[Round "2.7"]
[White "Ibanez Aullana, Ramon"]
[Black "Bru Company, Francesc E."]
[Result "1-0"]
[TimeControl "5m+3s"]
[WhiteElo "2282"]
[BlackElo "1930"]

1. c4 {[%clk 00:05:04]} {[%emt 00:00:06]} Nf6 {[%clk 00:05:01]} {[%emt
00:00:04]} 2. Nc3 {[%clk 00:05:05]} e6 {[%clk 00:05:02]} {[%emt 00:00:05]} 3.
e4 {[%clk 00:05:06]} d6 {[%clk 00:05:04]} 4. d4 {[%clk 00:05:06]} {[%emt
00:00:05]} c6 {[%clk 00:05:05]} {[%emt 00:00:04]} 5. f4 {[%clk 00:05:03]}
{[%emt 00:00:05]} Be7 {[%clk 00:05:06]} 6. e5 {[%clk 00:05:01]} {[%emt
00:00:11]} Nfd7 {[%clk 00:04:52]} {[%emt 00:00:10]} 7. Nf3 {[%clk 00:05:02]} d5
{[%clk 00:04:37]} {[%emt 00:00:20]} 8. Be3 {[%clk 00:05:00]} {[%emt 00:00:05]}
dxc4 {[%clk 00:03:49]} {[%emt 00:00:50]} 9. Bxc4 {[%clk 00:05:01]} Nb6 {[%clk
00:03:51]} {[%emt 00:00:09]} 10. Bd3 {[%clk 00:04:34]} {[%emt 00:00:27]} Nd5
{[%clk 00:03:43]} {[%emt 00:00:08]} 11. Nxd5 {[%clk 00:04:34]} {[%emt
00:00:06]} cxd5 {[%clk 00:03:44]} 12. O-O {[%clk 00:04:35]} {[%emt 00:00:05]}
Nc6 {[%clk 00:03:45]} 13. a3 {[%clk 00:04:31]} {[%emt 00:00:05]} O-O {[%clk
00:02:59]} {[%emt 00:00:49]} 14. Qc2 {[%clk 00:04:31]} {[%emt 00:00:06]} g6
{[%clk 00:02:47]} {[%emt 00:00:11]} 15. Rf2 {[%clk 00:04:09]} {[%emt 00:00:26]}
Bd7 {[%clk 00:02:46]} {[%emt 00:00:06]} 16. Raf1 {[%clk 00:04:10]} Rc8 {[%clk
00:02:44]} {[%emt 00:00:05]} 17. Qb1 {[%clk 00:04:12]} Na5 {[%clk 00:02:11]}
{[%emt 00:00:39]} 18. g3 {[%clk 00:03:54]} {[%emt 00:00:19]} Nc4 {[%clk
00:01:57]} {[%emt 00:00:21]} 19. Bc1 {[%clk 00:03:56]} Qb6 {[%clk 00:01:44]}
{[%emt 00:00:14]} 20. h4 {[%clk 00:03:50]} {[%emt 00:00:08]} a6 {[%clk
00:01:25]} {[%emt 00:00:23]} 21. h5 {[%clk 00:03:51]} Bb5 {[%clk 00:01:24]}
{[%emt 00:00:10]} 22. hxg6 {[%clk 00:03:50]} hxg6 {[%clk 00:01:23]} {[%emt
00:00:05]} 23. Bxg6 {[%clk 00:03:51]} {[%emt 00:00:22]} Nxa3 {[%clk 00:01:23]}
24. bxa3 {[%clk 00:03:51]} Rc6 {[%clk 00:00:44]} {[%emt 00:00:30]} 25. Bd3
{[%clk 00:03:25]} {[%emt 00:00:33]} Bxd3 {[%clk 00:00:32]} {[%emt 00:00:07]} 26.
Qxd3 {[%clk 00:03:27]} Qb5 {[%clk 00:00:07]} {[%emt 00:00:30]} 27. Qe3 {[%clk
00:03:08]} {[%emt 00:00:20]} Qc4 {[%clk 00:00:06]} {[%emt 00:00:06]} 28. f5
{[%clk 00:03:08]} {[%emt 00:00:06]} exf5 {[%clk 00:00:04]} {[%emt 00:00:05]} 29.
Qf4 {[%clk 00:02:53]} {[%emt 00:00:13]} f6 {[%emt 00:00:07]} 1-0

[Event "Open Mancomunitat de la Ribera Alta (Sumacàrcer)"]
[Site "Sumacàrcer, Spain"]
[Date "2018.11.18"]
[Round "3.1"]
[White "Plaskett, H James"]
[Black "Galvan, Jesus"]
[Result "1-0"]
[TimeControl "5m+3s"]
[WhiteElo "2490"]
[BlackElo "2254"]

1. d4 {[%clk 00:04:52]} {[%emt 00:00:15]} d6 {[%clk 00:05:06]} 2. e4 {[%clk
00:04:53]} {[%emt 00:00:03]} Nf6 {[%clk 00:05:08]} {[%emt 00:00:04]} 3. Nc3
{[%clk 00:04:54]} c6 {[%clk 00:05:10]} 4. f3 {[%clk 00:04:55]} {[%emt
00:00:03]} e5 {[%clk 00:05:12]} 5. Nge2 {[%clk 00:04:57]} {[%emt 00:00:04]}
Nbd7 {[%clk 00:05:13]} 6. Be3 {[%clk 00:04:58]} {[%emt 00:00:03]} Be7 {[%clk
00:05:09]} {[%emt 00:00:06]} 7. Qd2 {[%clk 00:04:59]} {[%emt 00:00:04]} b5
{[%clk 00:04:49]} {[%emt 00:00:18]} 8. Ng3 {[%clk 00:04:54]} {[%emt 00:00:10]}
g6 {[%clk 00:04:41]} {[%emt 00:00:09]} 9. a3 {[%clk 00:04:42]} {[%emt
00:00:25]} Bb7 {[%clk 00:04:08]} {[%emt 00:00:26]} 10. Be2 {[%clk 00:04:36]}
{[%emt 00:00:12]} h5 {[%clk 00:04:09]} {[%emt 00:00:03]} 11. O-O {[%clk
00:04:37]} h4 {[%clk 00:03:59]} {[%emt 00:00:12]} 12. Nh1 {[%clk 00:04:38]} Nh5
{[%clk 00:04:02]} 13. Rad1 {[%clk 00:04:12]} {[%emt 00:00:34]} a6 {[%clk
00:03:43]} {[%emt 00:00:37]} 14. Nf2 {[%clk 00:03:52]} {[%emt 00:00:10]} Qc7
{[%clk 00:03:06]} {[%emt 00:00:35]} 15. d5 {[%clk 00:03:40]} {[%emt 00:00:14]}
c5 {[%clk 00:03:03]} {[%emt 00:00:09]} 16. a4 {[%clk 00:03:43]} b4 {[%clk
00:02:40]} {[%emt 00:00:23]} 17. Nb1 {[%clk 00:03:44]} {[%emt 00:00:31]} O-O
{[%clk 00:01:51]} {[%emt 00:00:25]} 18. Nd3 {[%clk 00:03:10]} {[%emt 00:00:35]}
a5 {[%clk 00:01:20]} {[%emt 00:00:37]} 19. c4 {[%clk 00:03:11]} {[%emt
00:00:17]} bxc3 {[%clk 00:01:14]} {[%emt 00:00:04]} 20. Nxc3 {[%clk 00:03:11]}
Ba6 {[%clk 00:01:12]} 21. Rc1 {[%clk 00:02:27]} {[%emt 00:00:44]} Rab8 {[%clk
00:00:49]} {[%emt 00:00:28]} 22. Nb5 {[%clk 00:01:46]} {[%emt 00:00:41]} Bxb5
{[%clk 00:00:22]} {[%emt 00:00:29]} 23. axb5 {[%emt 00:00:32]} Rxb5 24. Nxe5
{[%clk 00:01:45]} Rb4 {[%clk 00:00:26]} {[%emt 00:00:04]} 25. Nc6 {[%clk
00:01:45]} Bf6 {[%clk 00:00:25]} 26. Nxb4 {[%clk 00:01:43]} axb4 {[%clk
00:00:27]} 27. f4 {[%clk 00:01:45]} Ng7 {[%clk 00:00:27]} 28. b3 {[%clk
00:01:36]} {[%emt 00:00:06]} Re8 {[%clk 00:00:24]} {[%emt 00:00:08]} 29. Qxb4
{[%clk 00:01:13]} {[%emt 00:00:20]} Nf5 {[%clk 00:00:23]} {[%emt 00:00:19]} 30.
Bf2 {[%clk 00:01:06]} {[%emt 00:00:08]} Rb8 {[%clk 00:00:21]} 31. Qd2 {[%clk
00:01:06]} {[%emt 00:00:04]} Nd4 {[%clk 00:00:24]} 32. Bxd4 {[%clk 00:01:07]}
Bxd4+ {[%clk 00:00:22]} {[%emt 00:00:04]} 33. Qxd4 {[%clk 00:01:08]} Rxb3
{[%clk 00:00:24]} {[%emt 00:00:08]} 34. Qd2 {[%clk 00:01:07]} Qb6 {[%clk
00:00:26]} {[%emt 00:00:03]} 35. Bc4 {[%clk 00:01:07]} Rb2 {[%clk 00:00:25]}
{[%emt 00:00:04]} 36. Qc3 {[%clk 00:01:09]} Rb4 {[%clk 00:00:16]} {[%emt
00:00:12]} 37. e5 {[%clk 00:01:09]} Qd8 {[%clk 00:00:13]} {[%emt 00:00:06]} 38.
e6 {[%clk 00:01:08]} {[%emt 00:00:05]} Nf6 {[%clk 00:00:16]} 39. Rce1 {[%clk
00:01:06]} {[%emt 00:00:04]} Qe7 {[%clk 00:00:13]} {[%emt 00:00:10]} 40. exf7+
{[%clk 00:00:59]} {[%emt 00:00:06]} Qxf7 {[%clk 00:00:16]} {[%emt 00:00:03]} 41.
Re6 {[%clk 00:01:00]} Ng4 {[%clk 00:00:11]} {[%emt 00:00:15]} 42. Rfe1 {[%clk
00:00:54]} {[%emt 00:00:06]} Rb8 {[%clk 00:00:11]} 43. Qf3 {[%clk 00:00:49]}
{[%emt 00:00:06]} Nh6 {[%clk 00:00:08]} {[%emt 00:00:07]} 44. Qe4 {[%clk
00:00:44]} {[%emt 00:00:07]} Nf5 {[%clk 00:00:10]} {[%emt 00:00:04]} 45. Bf1
{[%clk 00:00:44]} {[%emt 00:00:03]} Kg7 {[%clk 00:00:06]} {[%emt 00:00:05]} 46.
Re7 {[%clk 00:00:43]} {[%emt 00:00:04]} Nxe7 {[%clk 00:00:08]} 47. Qxe7 {[%clk
00:00:45]} {[%emt 00:00:03]} Rb7 {[%clk 00:00:05]} {[%emt 00:00:04]} 48. Qxd6
{[%clk 00:00:45]} {[%emt 00:00:07]} c4 {[%clk 00:00:06]} {[%emt 00:00:04]} 49.
Qe5+ {[%clk 00:00:46]} Kh7 {[%clk 00:00:08]} 50. d6 {[%clk 00:00:47]} c3 {[%clk
00:00:09]} {[%emt 00:00:06]} 51. Qxc3 {[%clk 00:00:48]} Qxf4 {[%clk 00:00:10]}
52. Re7+ {[%clk 00:00:48]} Rxe7 {[%clk 00:00:05]} {[%emt 00:00:08]} 53. dxe7
{[%clk 00:00:49]} {[%emt 00:00:08]} Qe4 {[%clk 00:00:06]} {[%emt 00:00:04]} 54.
Qc5 {[%clk 00:00:49]} h3 {[%clk 00:00:05]} {[%emt 00:00:04]} 55. gxh3 {[%clk
00:00:50]} Qe6 {[%emt 00:00:03]} 56. Qg5 {[%emt 00:00:03]} Qb6+ {[%emt
00:00:05]} 57. Kg2 Qc6+ 58. Kf2 {[%emt 00:00:10]} Qc2+ {[%emt 00:00:03]} 59.
Be2 1-0

[Event "Open Mancomunitat de la Ribera Alta (Sumacàrcer)"]
[Site "Sumacàrcer, Spain"]
[Date "2018.11.18"]
[Round "3.2"]
[White "Toledano Llinares, Juan A."]
[Black "Kovacevic, Slobodan"]
[Result "1-0"]
[TimeControl "5m+3s"]
[WhiteElo "2258"]
[BlackElo "2455"]

1. f4 {[%clk 00:05:04]} {[%emt 00:00:06]} d5 {[%clk 00:05:05]} 2. Nf3 {[%clk
00:05:04]} c5 {[%clk 00:05:06]} {[%emt 00:00:04]} 3. b3 {[%clk 00:05:00]}
{[%emt 00:00:04]} Nc6 {[%clk 00:05:07]} {[%emt 00:00:04]} 4. e3 {[%clk
00:05:00]} {[%emt 00:00:08]} a6 {[%clk 00:05:10]} 5. Bb2 {[%clk 00:05:02]} Bf5
{[%clk 00:05:03]} {[%emt 00:00:04]} 6. Be2 {[%clk 00:04:53]} {[%emt 00:00:10]}
h6 {[%clk 00:05:04]} {[%emt 00:00:09]} 7. O-O {[%clk 00:04:50]} {[%emt
00:00:03]} Nf6 {[%clk 00:05:05]} {[%emt 00:00:04]} 8. Ne5 {[%clk 00:04:50]}
{[%emt 00:00:03]} Rc8 {[%clk 00:04:59]} {[%emt 00:00:04]} 9. d3 {[%clk
00:04:50]} e6 {[%clk 00:05:00]} {[%emt 00:00:10]} 10. Nd2 {[%clk 00:04:48]} Be7
{[%clk 00:04:53]} {[%emt 00:00:09]} 11. Nxc6 {[%clk 00:04:29]} Rxc6 {[%clk
00:04:55]} {[%emt 00:00:37]} 12. c4 {[%clk 00:04:26]} O-O {[%clk 00:04:52]}
{[%emt 00:00:14]} 13. Nf3 {[%clk 00:04:17]} Rc8 {[%clk 00:04:47]} {[%emt
00:00:09]} 14. Ne5 {[%clk 00:04:14]} {[%emt 00:00:16]} Bh7 {[%clk 00:04:11]} 15.
Bf3 Bf5 {[%clk 00:04:23]} {[%emt 00:00:09]} 16. Be2 {[%clk 00:04:14]} {[%emt
00:00:04]} Bh7 {[%clk 00:04:11]} 17. Bf3 {[%clk 00:04:14]} Bd6 {[%clk
00:04:11]} {[%emt 00:00:43]} 18. Re1 {[%clk 00:03:01]} Rc7 {[%clk 00:04:04]}
{[%emt 00:01:03]} 19. Qe2 {[%clk 00:02:38]} Re8 {[%clk 00:03:47]} {[%emt
00:00:45]} 20. Rad1 {[%clk 00:02:40]} Qe7 {[%clk 00:03:37]} {[%emt 00:00:13]}
21. Qf2 {[%clk 00:02:35]} Rd8 {[%clk 00:03:26]} {[%emt 00:00:28]} 22. Qh4
{[%clk 00:02:36]} b5 {[%clk 00:03:18]} {[%emt 00:00:12]} 23. Ng4 {[%clk
00:02:17]} Nxg4 {[%clk 00:03:14]} {[%emt 00:00:26]} 24. Qxg4 {[%clk 00:02:18]}
f5 {[%clk 00:01:56]} {[%emt 00:01:22]} 25. Qg3 {[%clk 00:02:10]} Qf7 {[%clk
00:01:37]} {[%emt 00:00:32]} 26. Kh1 {[%clk 00:01:58]} Rcd7 {[%clk 00:01:38]}
{[%emt 00:00:30]} 27. h3 {[%clk 00:01:47]} Bc7 {[%clk 00:01:35]} {[%emt
00:00:15]} 28. cxd5 {[%clk 00:01:44]} exd5 {[%clk 00:01:35]} {[%emt 00:00:03]}
29. a4 {[%clk 00:01:23]} b4 {[%clk 00:01:16]} {[%emt 00:00:43]} 30. Be2 {[%clk
00:01:19]} a5 {[%clk 00:01:16]} {[%emt 00:00:10]} 31. Rc1 {[%clk 00:01:18]} Bd6
{[%clk 00:01:14]} {[%emt 00:00:15]} 32. d4 {[%clk 00:01:19]} Rc7 {[%clk
00:01:08]} {[%emt 00:00:05]} 33. dxc5 {[%clk 00:01:18]} {[%emt 00:00:23]} Rxc5
{[%clk 00:01:10]} 34. Rxc5 {[%clk 00:01:17]} {[%emt 00:00:05]} Bxc5 {[%clk
00:01:11]} 35. Rc1 {[%clk 00:01:19]} Bf8 {[%clk 00:01:13]} 36. Rc6 {[%clk
00:01:15]} Re8 {[%clk 00:01:08]} {[%emt 00:00:08]} 37. Bd4 {[%clk 00:01:03]}
{[%emt 00:00:08]} Re6 {[%clk 00:00:57]} {[%emt 00:00:38]} 38. Rc2 {[%clk
00:00:54]} Bg6 {[%clk 00:00:57]} 39. Qh4 {[%clk 00:00:49]} {[%emt 00:00:04]}
Re8 {[%clk 00:00:53]} {[%emt 00:00:05]} 40. Bb5 {[%clk 00:00:49]} {[%emt
00:00:03]} Re7 {[%clk 00:00:49]} {[%emt 00:00:07]} 41. Rc8 {[%clk 00:00:50]}
{[%emt 00:00:06]} Rc7 {[%clk 00:00:41]} {[%emt 00:00:05]} 42. Qd8 {[%clk
00:00:41]} {[%emt 00:00:18]} Rxc8 {[%clk 00:00:40]} {[%emt 00:00:03]} 43. Qxc8
{[%clk 00:00:43]} Kh7 {[%clk 00:00:42]} 44. Kh2 {[%clk 00:00:40]} {[%emt
00:00:05]} Be7 {[%clk 00:00:35]} {[%emt 00:00:06]} 45. Bd7 {[%clk 00:00:42]}
{[%emt 00:00:10]} {Bandera} 1-0

[Event "Open Mancomunitat de la Ribera Alta (Sumacàrcer)"]
[Site "Sumacàrcer, Spain"]
[Date "2018.11.18"]
[Round "3.3"]
[White "Campos Gambuti, Luis Maria"]
[Black "Gavarrete, Nahun"]
[Result "1-0"]
[TimeControl "5m+3s"]
[WhiteElo "2432"]
[BlackElo "2200"]

1. Nf3 {[%clk 00:05:05]} {[%emt 00:00:08]} Nf6 {[%clk 00:05:04]} {[%emt
00:00:04]} 2. b3 {[%clk 00:05:07]} g6 {[%clk 00:05:06]} 3. Bb2 {[%clk
00:05:09]} Bg7 {[%clk 00:05:09]} 4. g3 {[%clk 00:05:08]} O-O {[%clk 00:05:10]}
{[%emt 00:00:03]} 5. Bg2 {[%clk 00:05:10]} c5 {[%clk 00:05:13]} 6. O-O {[%clk
00:05:08]} {[%emt 00:00:05]} Nc6 {[%clk 00:05:15]} {[%emt 00:00:13]} 7. c4
{[%clk 00:05:08]} d5 {[%clk 00:05:13]} 8. cxd5 {[%clk 00:05:06]} {[%emt
00:00:08]} Qxd5 {[%clk 00:05:14]} 9. Ne5 {[%clk 00:04:55]} {[%emt 00:00:23]}
Qd6 {[%clk 00:05:12]} 10. Nxc6 {[%clk 00:04:56]} {[%emt 00:00:07]} bxc6 {[%clk
00:05:14]} 11. d3 {[%clk 00:04:57]} a5 {[%clk 00:04:55]} {[%emt 00:00:10]} 12.
Nd2 {[%clk 00:04:58]} {[%emt 00:00:03]} Be6 {[%clk 00:04:50]} {[%emt 00:00:05]}
13. Rc1 {[%clk 00:04:55]} {[%emt 00:00:33]} a4 {[%clk 00:04:26]} {[%emt
00:00:03]} 14. Bxf6 {[%clk 00:04:05]} {[%emt 00:00:49]} exf6 {[%clk 00:04:28]}
{[%emt 00:00:15]} 15. Ne4 {[%clk 00:04:07]} Qe7 {[%clk 00:03:57]} {[%emt
00:00:24]} 16. Nxc5 {[%clk 00:04:05]} {[%emt 00:00:05]} axb3 {[%clk 00:03:53]}
{[%emt 00:00:07]} 17. Nxe6 {[%clk 00:03:26]} {[%emt 00:00:38]} fxe6 {[%clk
00:03:42]} {[%emt 00:00:17]} 18. Qxb3 {[%clk 00:03:04]} {[%emt 00:00:26]} Ra3
{[%clk 00:03:21]} {[%emt 00:00:26]} 19. Qc4 {[%clk 00:03:01]} {[%emt 00:00:03]}
c5 {[%clk 00:02:57]} {[%emt 00:00:24]} 20. e3 {[%clk 00:02:44]} {[%emt
00:00:20]} Rd8 {[%clk 00:02:55]} {[%emt 00:00:36]} 21. Rfd1 {[%clk 00:02:44]}
f5 {[%clk 00:02:44]} {[%emt 00:00:04]} 22. Bf1 {[%clk 00:02:34]} {[%emt
00:00:06]} Kf7 {[%clk 00:01:57]} {[%emt 00:00:39]} 23. Rd2 {[%clk 00:02:35]}
{[%emt 00:00:19]} Rda8 {[%clk 00:01:45]} {[%emt 00:00:15]} 24. Qxc5 {[%clk
00:02:27]} Qxc5 {[%clk 00:01:34]} {[%emt 00:00:11]} 25. Rxc5 {[%clk 00:02:29]}
{[%emt 00:00:18]} Rxa2 {[%clk 00:01:36]} 26. Rc7+ {[%clk 00:02:28]} {[%emt
00:00:04]} Kf6 {[%clk 00:01:38]} 27. Rxa2 {[%clk 00:02:30]} Rxa2 28. d4 {[%clk
00:02:32]} h6 {[%clk 00:01:23]} {[%emt 00:00:12]} 29. h4 {[%clk 00:02:29]} Rb2
{[%clk 00:00:57]} {[%emt 00:00:32]} 30. Rc6 {[%clk 00:02:26]} {[%emt 00:00:05]}
Rb7 {[%clk 00:00:11]} {[%emt 00:00:47]} 31. Bc4 {[%clk 00:02:27]} {[%emt
00:00:35]} Re7 {[%clk 00:00:13]} 32. d5 {[%clk 00:02:29]} g5 {[%clk 00:00:14]}
33. h5 {[%clk 00:02:15]} {[%emt 00:00:06]} f4 {[%clk 00:00:13]} 34. g4 {[%clk
00:02:09]} fxe3 {[%clk 00:00:16]} 35. fxe3 Ke5 36. dxe6 {[%clk 00:02:00]}
{[%emt 00:00:10]} Ke4 {[%clk 00:00:17]} {[%emt 00:00:15]} 37. Kf2 {[%clk
00:02:00]} Re8 {[%clk 00:00:17]} 38. Rc7 {[%clk 00:01:56]} {[%emt 00:00:05]}
Be5 {[%clk 00:00:14]} {[%emt 00:00:12]} 39. Rf7 {[%clk 00:01:50]} {[%emt
00:00:03]} Rc8 {[%clk 00:00:16]} 40. e7 {[%clk 00:01:45]} {[%emt 00:00:08]} Bd6
{[%clk 00:00:09]} {[%emt 00:00:10]} 41. Bb5 {[%clk 00:01:40]} {[%emt 00:00:09]}
Rc2+ {[%clk 00:00:05]} {[%emt 00:00:19]} 42. Kf1 {[%clk 00:01:39]} Bxe7 {[%clk
00:00:07]} 43. Rxe7+ {[%clk 00:01:41]} Kf3 {[%clk 00:00:09]} 44. Rf7+ {[%clk
00:01:33]} {[%emt 00:00:07]} Kxg4 {[%clk 00:00:10]} {[%emt 00:00:05]} 45. Be2+
{[%clk 00:01:35]} Kg3 {[%clk 00:00:11]} 46. Rf3+ {[%clk 00:01:36]} {[%emt
00:00:03]} Kh4 {[%clk 00:00:13]} 47. e4 {[%clk 00:01:27]} {[%emt 00:00:19]} Rb2
{[%clk 00:00:13]} 48. e5 {[%clk 00:01:27]} g4 {[%clk 00:00:12]} {[%emt
00:00:03]} 49. Rf4 {[%clk 00:01:26]} {[%emt 00:00:04]} Kg5 {[%clk 00:00:12]}
{[%emt 00:00:04]} 50. Rxg4+ {[%clk 00:01:13]} {[%emt 00:00:11]} Kf5 {[%clk
00:00:15]} 51. Rg6 {[%clk 00:01:14]} {[%emt 00:00:10]} Kxe5 {[%clk 00:00:14]}
52. Kf2 {[%clk 00:01:17]} Kf4 {[%clk 00:00:15]} 53. Rxh6 {[%clk 00:01:16]}
{[%emt 00:00:17]} Ra2 {[%clk 00:00:17]} 54. Rc6 {[%clk 00:01:15]} Rb2 {[%clk
00:00:18]} {[%emt 00:00:10]} 55. h6 {[%clk 00:01:14]} Rb7 {[%clk 00:00:12]} 56.
Bd3 {[%clk 00:01:14]} Rb2+ {[%clk 00:00:12]} {[%emt 00:00:08]} 57. Bc2 {[%clk
00:01:16]} Ra2 {[%clk 00:00:10]} {[%emt 00:00:06]} 58. h7 {[%clk 00:01:17]} Ra8
{[%clk 00:00:12]} 59. Rg6 {[%clk 00:01:18]} Rc8 {[%clk 00:00:13]} {[%emt
00:00:07]} 60. Bb1 {[%clk 00:01:15]} Rb8 {[%clk 00:00:13]} {[%emt 00:00:04]} 61.
Bd3 {[%clk 00:01:08]} {[%emt 00:00:11]} Rd8 {[%clk 00:00:04]} {[%emt 00:00:23]}
62. Rg8 {[%clk 00:01:04]} 1-0

[Event "Open Mancomunitat de la Ribera Alta (Sumacàrcer)"]
[Site "Sumacàrcer, Spain"]
[Date "2018.11.18"]
[Round "3.4"]
[White "Serarols Mabras, Bernat"]
[Black "Granero Roca, Antonio"]
[Result "1-0"]
[TimeControl "5m+3s"]
[WhiteElo "2191"]
[BlackElo "2372"]

1. d4 {[%clk 00:05:05]} Nf6 {[%clk 00:05:05]} 2. c4 {[%clk 00:05:05]} g6 {[%clk
00:05:07]} 3. Nc3 {[%clk 00:05:00]} {[%emt 00:00:04]} Bg7 {[%clk 00:05:08]}
{[%emt 00:00:03]} 4. Nf3 {[%clk 00:05:00]} O-O {[%clk 00:05:09]} {[%emt
00:00:07]} 5. Bf4 {[%clk 00:05:01]} {[%emt 00:00:04]} d6 {[%clk 00:05:11]} 6.
e3 {[%clk 00:05:02]} Nbd7 {[%clk 00:05:12]} 7. Be2 {[%clk 00:05:02]} {[%emt
00:00:04]} c5 {[%clk 00:05:14]} 8. d5 {[%clk 00:05:03]} {[%emt 00:00:04]} a6
{[%clk 00:05:10]} {[%emt 00:00:13]} 9. a4 {[%clk 00:05:03]} b6 {[%clk
00:05:11]} {[%emt 00:00:03]} 10. O-O {[%clk 00:05:00]} Rb8 {[%clk 00:04:54]}
{[%emt 00:00:29]} 11. h3 {[%clk 00:05:00]} Ne8 {[%clk 00:04:55]} 12. e4 {[%clk
00:05:00]} Nc7 {[%clk 00:04:55]} {[%emt 00:00:04]} 13. Bd3 {[%clk 00:04:48]}
{[%emt 00:00:18]} f6 {[%clk 00:04:32]} {[%emt 00:00:20]} 14. Qd2 {[%clk
00:04:30]} {[%emt 00:00:26]} Ne5 {[%clk 00:04:33]} {[%emt 00:00:12]} 15. Nxe5
{[%clk 00:03:59]} {[%emt 00:00:16]} fxe5 {[%clk 00:04:35]} {[%emt 00:00:12]} 16.
Bg5 {[%clk 00:03:53]} {[%emt 00:00:04]} Bd7 {[%clk 00:04:31]} {[%emt 00:00:04]}
17. b3 {[%clk 00:03:54]} {[%emt 00:00:03]} Rf7 {[%clk 00:04:20]} {[%emt
00:00:35]} 18. Rfb1 {[%clk 00:03:42]} {[%emt 00:00:09]} Qf8 {[%clk 00:03:38]}
{[%emt 00:00:26]} 19. a5 {[%clk 00:03:04]} {[%emt 00:00:45]} b5 {[%clk
00:03:35]} {[%emt 00:00:07]} 20. b4 {[%clk 00:02:24]} {[%emt 00:00:39]} bxc4
{[%clk 00:03:18]} {[%emt 00:00:20]} 21. Bxc4 {[%clk 00:02:26]} {[%emt
00:00:12]} Rxb4 {[%clk 00:03:14]} 22. Rxb4 {[%clk 00:02:28]} cxb4 {[%clk
00:03:16]} 23. Na4 {[%clk 00:02:28]} Bb5 {[%clk 00:03:02]} {[%emt 00:00:17]} 24.
Bxb5 {[%clk 00:02:19]} {[%emt 00:00:15]} Nxb5 {[%clk 00:03:04]} {[%emt
00:00:03]} 25. Be3 {[%clk 00:02:20]} Nd4 {[%clk 00:02:52]} {[%emt 00:00:12]} 26.
Rb1 {[%clk 00:02:16]} {[%emt 00:00:10]} b3 {[%clk 00:02:51]} {[%emt 00:00:06]}
27. Nb6 {[%clk 00:02:08]} {[%emt 00:00:07]} Qe8 {[%clk 00:02:41]} {[%emt
00:00:30]} 28. Qd3 {[%clk 00:01:52]} {[%emt 00:00:30]} Qf8 {[%clk 00:02:05]}
{[%emt 00:00:11]} 29. Qxa6 {[%clk 00:01:37]} {[%emt 00:00:22]} Bh6 {[%clk
00:02:07]} {[%emt 00:00:10]} 30. Bxd4 {[%clk 00:00:34]} {[%emt 00:00:55]} exd4
{[%clk 00:02:08]} {[%emt 00:00:07]} 31. Qc8 {[%clk 00:00:32]} Rxf2 {[%clk
00:01:30]} {[%emt 00:00:38]} 32. Qxf8+ {[%clk 00:00:27]} {[%emt 00:00:10]} Rxf8
{[%clk 00:01:32]} {[%emt 00:00:04]} 33. Rxb3 {[%clk 00:00:28]} Bd2 {[%clk
00:01:09]} {[%emt 00:00:24]} 34. a6 {[%clk 00:00:16]} {[%emt 00:00:14]} Be3+
{[%clk 00:01:10]} {[%emt 00:00:09]} 35. Kh2 d3 36. Nc4 {[%clk 00:00:20]} Bf4+
{[%clk 00:01:05]} {[%emt 00:00:15]} 37. g3 {[%clk 00:00:22]} Bh6 {[%clk
00:00:44]} {[%emt 00:00:18]} 38. a7 {[%clk 00:00:24]} {[%emt 00:00:03]} d2
{[%clk 00:00:46]} 39. Nxd2 {[%clk 00:00:26]} Be3 {[%clk 00:00:40]} {[%emt
00:00:11]} 40. Nc4 {[%emt 00:00:36]} Bd2 1-0